bitfinex-derivatives/quotes_BTCF0:USTF0_20250114
["timestamp","ask_amount","ask_price","bid_price","bid_amount"]
[1736821611528,0.3608,95339.0,95337.0,0.052468]
[1736821612316,0.3608,95339.0,95335.0,0.00157331]
[1736821612317,0.413268,95339.0,95335.0,0.00157331]
[1736821612522,0.052469,95337.0,95335.0,0.00157331]
[1736821612918,0.0325,95336.0,95335.0,0.00157331]
[1736821613529,0.032,95338.0,95335.0,0.00157331]
[1736821613729,0.032,95338.0,95335.0,0.05404231]
[1736821617125,0.032,95338.0,95335.0,0.00157331]
[1736821621441,0.042,95338.0,95332.0,0.052471]
[1736821622532,0.01,95338.0,95332.0,0.052471]
[1736821622837,0.10580482,95360.0,95337.0,0.3608]
[1736821623139,0.10580482,95350.0,95337.0,0.413268]
[1736821623333,0.0636,95349.0,95338.0,0.052468]
[1736821623533,0.0636,95349.0,95337.0,0.3608]
[1736821623534,0.0322,95349.0,95346.0,0.3608]
[1736821623733,0.052458,95356.0,95346.0,0.3608]
[1736821623934,0.062458,95356.0,95346.0,0.3608]
[1736821624440,0.001,95349.0,95346.0,0.3608]
[1736821624641,0.001,95349.0,95346.0,0.413263]
[1736821625044,0.057458,95356.0,95346.0,0.413263]
[1736821625243,0.067458,95356.0,95346.0,0.413263]
[1736821625549,0.062458,95356.0,95346.0,0.413263]
[1736821625850,0.006,95349.0,95346.0,0.413263]
[1736821626234,0.006,95349.0,95348.0,0.052462]
[1736821627345,0.005,95349.0,95348.0,0.052462]
[1736821627546,0.006,95356.0,95348.0,0.052462]
[1736821627742,0.006,95356.0,95346.0,0.3608]
[1736821627935,0.052459,95354.0,95340.0,0.052467]
[1736821628141,0.006,95349.0,95340.0,0.052467]
[1736821628640,0.032,95348.0,95340.0,0.052467]
[1736821629243,0.3928,95348.0,95334.0,0.3608]
[1736821629448,0.3608,95337.0,95332.0,0.052471]
[1736821629742,0.052468,95338.0,95332.0,0.052471]
[1736821629943,0.3608,95337.0,95332.0,0.052471]
[1736821630552,0.3608,95337.0,95334.0,0.001]
[1736821631150,0.3608,95337.0,95332.0,0.054471]
[1736821631350,0.3608,95337.0,95332.0,0.055471]
[1736821631738,0.3608,95337.0,95332.0,0.053471]
[1736821631940,0.3608,95337.0,95334.0,0.001]
[1736821632142,0.052468,95338.0,95334.0,0.001]
[1736821632843,0.052468,95338.0,95334.0,0.002]
[1736821634547,0.052468,95338.0,95334.0,0.001]
[1736821635144,0.052468,95338.0,95334.0,0.002]
[1736821635850,0.052464,95346.0,95336.0,0.052468]
[1736821636050,0.052464,95346.0,95340.0,0.052466]
[1736821636653,0.052466,95342.0,95334.0,0.002]
[1736821636949,0.3608,95335.0,95334.0,0.002]
[1736821637152,0.3608,95335.0,95334.0,0.001]
[1736821637654,0.3608,95335.0,95327.0,0.052473]
[1736821638753,0.3608,95335.0,95334.0,0.001]
[1736821639349,0.3608,95335.0,95327.0,0.056473]
[1736821639654,0.3608,95335.0,95334.0,0.001]
[1736821641458,0.3608,95335.0,95334.0,0.002]
[1736821641753,0.06205332,95336.0,95334.0,0.002]
[1736821642451,0.0308,95341.0,95334.0,0.002]
[1736821642659,0.0308,95341.0,95338.0,0.052468]
[1736821644558,0.0318,95341.0,95338.0,0.052468]
[1736821647053,0.0318,95341.0,95330.0,0.083472]
[1736821647054,0.0418,95341.0,95330.0,0.083472]
[1736821647357,0.10580482,95340.0,95330.0,0.031]
[1736821648362,0.10580482,95340.0,95330.0,0.034]
[1736821648558,0.10580482,95340.0,95332.0,0.052471]
[1736821649159,0.052471,95332.0,95330.0,0.004]
[1736821650058,0.052471,95332.0,95330.0,0.003]
[1736821651061,0.052471,95332.0,95319.0,0.3608]
[1736821651363,0.10580482,95330.0,95319.0,0.3608]
[1736821651563,0.10580482,95330.0,95323.0,0.052476]
[1736821651764,0.15827782,95330.0,95323.0,0.052476]
[1736821652159,0.052473,95329.0,95323.0,0.052476]
[1736821652366,0.10580482,95330.0,95323.0,0.052476]
[1736821652559,0.052474,95328.0,95323.0,0.052476]
[1736821652759,0.052474,95328.0,95323.0,0.055476]
[1736821653158,0.052475,95326.0,95323.0,0.055476]
[1736821653357,0.10580482,95330.0,95323.0,0.055476]
[1736821653558,0.052475,95325.0,95323.0,0.003]
[1736821655057,0.052475,95325.0,95323.0,0.055476]
[1736821655257,0.053475,95325.0,95323.0,0.059476]
[1736821657963,0.001,95325.0,95323.0,0.059476]
[1736821660764,0.3924,95348.0,95323.0,0.059476]
[1736821660765,0.3608,95348.0,95346.0,0.052463]
[1736821661170,0.052465,95343.0,95339.0,0.052467]
[1736821661369,0.052466,95342.0,95339.0,0.052467]
[1736821662067,0.052466,95342.0,95311.0,0.37134]
[1736821662068,0.3668,95348.0,95327.0,0.3608]
[1736821662261,0.052468,95338.0,95327.0,0.3608]
[1736821662462,0.052468,95338.0,95333.0,0.05247]
[1736821662657,0.10580482,95340.0,95333.0,0.05247]
[1736821662872,0.10580482,95340.0,95327.0,0.3608]
[1736821663068,0.052471,95333.0,95327.0,0.3608]
[1736821663258,0.0314,95332.0,95329.0,0.052472]
[1736821664361,0.0314,95332.0,95330.0,0.052472]
[1736821665978,0.15827182,95340.0,95334.0,0.05247]
[1736821666271,0.1681003,95340.0,95334.0,0.05247]
[1736821666468,0.0302,95347.0,95335.0,0.3608]
[1736821666670,0.0402,95347.0,95335.0,0.3608]
[1736821667072,0.0402,95347.0,95344.0,0.052464]
[1736821668276,0.04982726,95347.0,95344.0,0.052464]
[1736821668472,0.05382726,95347.0,95344.0,0.052464]
[1736821668872,0.05382726,95347.0,95335.0,0.3608]
[1736821668873,0.05382726,95347.0,95336.0,0.052469]
[1736821669177,0.052469,95336.0,95334.0,0.001]
[1736821669367,0.0303,95335.0,95334.0,0.001]
[1736821669674,0.0303,95335.0,95331.0,0.052472]
[1736821670371,0.0303,95335.0,95334.0,0.001]
[1736821670973,0.04022225,95335.0,95334.0,0.001]
[1736821671271,0.04022225,95335.0,95331.0,0.002]
[1736821671272,0.052471,95332.0,95331.0,0.002]
[1736821671467,0.052471,95332.0,95316.0,0.3608]
[1736821671665,0.15827582,95332.0,95316.0,0.3608]
[1736821672065,0.15827582,95332.0,95331.0,0.001]
[1736821672265,0.052471,95332.0,95331.0,0.001]
[1736821672877,0.052471,95332.0,95323.0,0.052476]
[1736821673267,0.10580482,95333.0,95323.0,0.052476]
[1736821673467,0.052474,95328.0,95323.0,0.052476]
[1736821674171,0.052474,95328.0,95323.0,0.055476]
[1736821674770,0.053474,95328.0,95323.0,0.054476]
[1736821675172,0.052474,95327.0,95323.0,0.054476]
[1736821675368,0.052474,95327.0,95323.0,0.056476]
[1736821676569,0.053474,95327.0,95323.0,0.057476]
[1736821676770,0.053474,95327.0,95323.0,0.055476]
[1736821677074,0.053474,95327.0,95323.0,0.057476]
[1736821682184,0.0305,95326.0,95323.0,0.057476]
[1736821682581,0.001,95327.0,95323.0,0.005]
[1736821682786,0.001,95327.0,95326.0,0.052474]
[1736821684386,0.10580482,95333.0,95330.0,0.052472]
[1736821684587,0.01,95333.0,95331.0,0.052472]
[1736821684782,0.0305,95343.0,95332.0,0.3608]
[1736821684783,0.04003231,95343.0,95332.0,0.3608]
[1736821684984,0.02953231,95343.0,95341.0,0.052466]
[1736821686086,0.02953231,95343.0,95334.0,0.05247]
[1736821686288,0.0316,95342.0,95334.0,0.05247]
[1736821686487,0.0516,95342.0,95334.0,0.05247]
[1736821687590,0.052467,95339.0,95334.0,0.05347]
[1736821687788,0.062467,95339.0,95334.0,0.05347]
[1736821688688,0.062467,95339.0,95334.0,0.05447]
[1736821690186,0.3608,95335.0,95334.0,0.002]
[1736821690685,0.3932,95335.0,95334.0,0.002]
[1736821691092,0.4032,95335.0,95334.0,0.002]
[1736821691686,0.4042,95335.0,95334.0,0.002]
[1736821691894,0.4042,95335.0,95334.0,0.001]
[1736821692392,0.4042,95335.0,95334.0,0.002]
[1736821692588,0.052475,95325.0,95318.0,0.052479]
[1736821692788,0.052477,95321.0,95312.0,0.052482]
[1736821692983,0.052477,95321.0,95313.0,0.052481]
[1736821693294,0.052477,95321.0,95314.0,0.052481]
[1736821693592,0.052477,95321.0,95315.0,0.05248]
[1736821693790,0.052477,95321.0,95318.0,0.003]
[1736821694492,0.001,95325.0,95318.0,0.003]
[1736821694689,0.001,95325.0,95323.0,0.052476]
[1736821694900,0.001,95325.0,95324.0,0.0326]
[1736821695286,0.05247,95334.0,95324.0,0.0326]
[1736821695481,0.06223989,95334.0,95325.0,0.052475]
[1736821696691,0.052471,95333.0,95325.0,0.055475]
[1736821698394,0.052471,95333.0,95325.0,0.054475]
[1736821698602,0.053471,95333.0,95325.0,0.055475]
[1736821699392,0.052471,95332.0,95325.0,0.055475]
[1736821699793,0.052472,95331.0,95325.0,0.055475]
[1736821700486,0.052472,95331.0,95325.0,0.053475]
[1736821700694,0.052473,95329.0,95325.0,0.003]
[1736821701499,0.052473,95329.0,95325.0,0.004]
[1736821702791,0.053473,95329.0,95325.0,0.004]
[1736821703596,0.053473,95329.0,95325.0,0.002]
[1736821703893,0.053473,95329.0,95325.0,0.004]
[1736821704090,0.052474,95326.0,95325.0,0.004]
[1736821705497,0.053474,95326.0,95325.0,0.004]
[1736821706101,0.052484,95309.0,95303.0,0.083387]
[1736821706308,0.052485,95307.0,95297.0,0.3608]
[1736821706499,0.052486,95305.0,95298.0,0.05249]
[1736821706697,0.052487,95304.0,95298.0,0.05249]
[1736821707302,0.052487,95304.0,95297.0,0.3608]
[1736821708198,0.001,95303.0,95291.0,0.3608]
[1736821708498,0.10580482,95301.0,95291.0,0.3608]
[1736821708704,0.052491,95296.0,95291.0,0.3608]
[1736821709100,0.10580482,95301.0,95291.0,0.3608]
[1736821709610,0.10580482,95301.0,95291.0,0.3628]
[1736821710105,0.10580482,95301.0,95293.0,0.052493]
[1736821712908,0.15829282,95301.0,95293.0,0.053493]
[1736821713112,0.10580482,95301.0,95293.0,0.001]
[1736821713308,0.05249,95299.0,95293.0,0.001]
[1736821716224,0.0623369,95299.0,95293.0,0.001]
[1736821716720,0.0623369,95299.0,95293.0,0.053492]
[1736821726129,0.052491,95296.0,95293.0,0.001]
[1736821728920,0.0098469,95299.0,95293.0,0.001]
[1736821729116,0.10580482,95340.0,95293.0,0.001]
[1736821729326,0.4008,95305.0,95302.0,0.052488]
[1736821729729,0.41084157,95305.0,95302.0,0.052488]
[1736821730736,0.41284157,95305.0,95302.0,0.052488]
[1736821731230,0.41084157,95305.0,95302.0,0.052488]
[1736821731432,0.41284157,95305.0,95302.0,0.052488]
[1736821731625,0.41284157,95305.0,95292.0,0.0305]
[1736821731826,0.41384157,95305.0,95292.0,0.0305]
[1736821732027,0.10580482,95302.0,95292.0,0.0305]
[1736821732217,0.10580482,95302.0,95296.0,0.052491]
[1736821732422,0.37384157,95305.0,95298.0,0.05249]
[1736821732634,0.41384157,95305.0,95298.0,0.05249]
[1736821733131,0.052491,95296.0,95291.0,0.00128]
[1736821733424,0.052491,95296.0,95279.0,0.36204]
[1736821733425,0.5008,95296.0,95279.0,0.36204]
[1736821733727,0.052499,95282.0,95279.0,0.3608]
[1736821733934,0.0663,95281.0,95279.0,0.3608]
[1736821734825,0.0525,95280.0,95279.0,0.3608]
[1736821735825,0.0525,95280.0,95279.0,0.3628]
[1736821736226,0.0535,95280.0,95279.0,0.3628]
[1736821736426,0.0535,95280.0,95279.0,0.3608]
[1736821736626,0.0535,95280.0,95279.0,0.3628]
[1736821737024,0.06356113,95280.0,95279.0,0.3628]
[1736821740535,0.01106113,95280.0,95279.0,0.3628]
[1736821741034,0.01106113,95280.0,95279.0,0.4153]
[1736821741226,0.001,95280.0,95279.0,0.4153]
[1736821742633,0.001,95280.0,95279.0,0.42545349]
[1736821743821,0.001,95280.0,95279.0,0.4153]
[1736821745431,0.001,95280.0,95279.0,0.4454]
[1736821749434,0.10580482,95300.0,95279.0,0.3929]
[1736821749635,0.15829382,95300.0,95295.0,0.3608]
[1736821750639,0.065,95309.0,95295.0,0.3608]
[1736821750944,0.00056001,95312.0,95310.0,0.052483]
[1736821751340,0.01024798,95315.0,95310.0,0.052483]
[1736821751536,0.13086285,95316.0,95310.0,0.052483]
[1736821751745,0.14086285,95316.0,95310.0,0.052483]
[1736821752240,0.02144799,95316.0,95310.0,0.052483]
[1736821752440,0.009,95312.0,95310.0,0.052483]
[1736821752644,0.009,95312.0,95308.0,0.00997803]
[1736821752842,0.02044799,95316.0,95304.0,0.3608]
[1736821753042,0.10580482,95314.0,95304.0,0.3608]
[1736821753346,0.052485,95308.0,95304.0,0.3608]
[1736821754641,0.052485,95308.0,95304.0,0.37083022]
[1736821754832,0.054485,95308.0,95304.0,0.37083022]
[1736821755044,0.060485,95308.0,95304.0,0.37083022]
[1736821755345,0.008,95308.0,95307.0,0.052485]
[1736821757233,0.009,95308.0,95307.0,0.052485]
[1736821757434,0.01,95308.0,95307.0,0.052485]
[1736821766656,0.01,95308.0,95307.0,0.413285]
[1736821775166,0.01,95308.0,95307.0,0.3608]
[1736821775351,0.062485,95308.0,95307.0,0.3608]
[1736821776859,0.052491,95297.0,95291.0,0.052494]
[1736821777057,0.10580482,95301.0,95291.0,0.052494]
[1736821777655,0.10580482,95301.0,95289.0,0.3608]
[1736821777964,0.10580482,95301.0,95293.0,0.052492]
[1736821777965,0.052492,95295.0,95293.0,0.052492]
[1736821778154,0.052488,95303.0,95302.0,0.052488]
[1736821778754,0.3608,95306.0,95305.0,0.052486]
[1736821779960,0.0647,95307.0,95305.0,0.052486]
[1736821780155,0.033,95307.0,95306.0,0.3608]
[1736821781466,0.043,95307.0,95306.0,0.3608]
[1736821784069,0.043,95307.0,95305.0,0.052486]
[1736821787863,0.01,95307.0,95305.0,0.052486]
[1736821788068,0.01,95307.0,95306.0,0.3608]
[1736821789076,0.01,95307.0,95305.0,0.052486]
[1736821792571,0.01,95307.0,95305.0,0.413286]
[1736821800582,0.052486,95306.0,95305.0,0.3608]
[1736821800777,0.052491,95297.0,95290.0,0.052494]
[1736821801079,0.0311,95296.0,95285.0,0.00157394]
[1736821801285,0.052494,95291.0,95285.0,0.00157394]
[1736821801477,0.10580482,95295.0,95281.0,0.032]
[1736821801782,0.15829682,95295.0,95281.0,0.032]
[1736821801980,0.052492,95294.0,95287.0,0.052496]
[1736821802374,0.10580482,95295.0,95287.0,0.052496]
[1736821802570,0.052493,95293.0,95287.0,0.052496]
[1736821803484,0.052493,95293.0,95288.0,0.052495]
[1736821804279,0.3608,95303.0,95288.0,0.3608]
[1736821804486,0.10580482,95310.0,95305.0,0.052486]
[1736821804685,0.00157432,95315.0,95306.0,0.3608]
[1736821804980,0.00157432,95315.0,95306.0,0.3913]
[1736821805179,0.01032951,95316.0,95314.0,0.052481]
[1736821805676,0.10580482,95320.0,95306.0,0.3913]
[1736821806279,0.10580482,95320.0,95316.0,0.3608]
[1736821806479,0.0319,95323.0,95320.0,0.052478]
[1736821806880,0.0319,95323.0,95321.0,0.052477]
[1736821807685,0.0369,95323.0,95321.0,0.052477]
[1736821808479,0.0369,95323.0,95321.0,0.053477]
[1736821810380,0.005,95323.0,95321.0,0.053477]
[1736821813586,0.005,95323.0,95321.0,0.001]
[1736821813788,0.052481,95316.0,95307.0,0.3608]
[1736821813986,0.052482,95314.0,95307.0,0.3608]
[1736821814184,0.3608,95310.0,95299.0,0.00157391]
[1736821814384,0.3608,95300.0,95299.0,0.00157391]
[1736821814692,0.3608,95300.0,95284.0,0.3608]
[1736821814891,0.3608,95300.0,95284.0,0.413298]
[1736821814892,0.15829682,95294.0,95284.0,0.413298]
[1736821815087,0.3608,95290.0,95284.0,0.052498]
[1736821815294,0.3608,95290.0,95279.0,0.00157417]
[1736821815496,0.052503,95275.0,95264.0,0.414188]
[1736821815788,0.10580482,95274.0,95264.0,0.3608]
[1736821815998,0.10580482,95274.0,95268.0,0.052507]
[1736821816189,0.29541064,95280.0,95268.0,0.052507]
[1736821816380,0.052501,95279.0,95268.0,0.052507]
[1736821816786,0.001,95278.0,95268.0,0.052507]
[1736821817494,0.001,95278.0,95268.0,0.053507]
[1736821817792,0.052501,95279.0,95268.0,0.053507]
[1736821818297,0.052501,95279.0,95270.0,0.052505]
[1736821818489,0.14640537,95280.0,95274.0,0.052503]
[1736821820490,0.11610537,95280.0,95274.0,0.052503]
[1736821820689,0.11610537,95280.0,95276.0,0.052502]
[1736821820891,0.01030055,95280.0,95276.0,0.052502]
[1736821821090,0.15830182,95286.0,95276.0,0.052502]
[1736821822288,0.11618494,95286.0,95275.0,0.0304]
[1736821822593,0.11618494,95286.0,95265.0,0.0622]
[1736821822594,0.0525,95280.0,95268.0,0.052506]
[1736821822793,0.10580482,95278.0,95268.0,0.052506]
[1736821823792,0.10580482,95278.0,95265.0,0.0622]
[1736821823793,0.052504,95274.0,95265.0,0.0622]
[1736821824709,0.052504,95274.0,95268.0,0.003]
[1736821826099,0.3608,95281.0,95268.0,0.003]
[1736821826296,0.052495,95289.0,95272.0,0.3608]
[1736821827399,0.00056001,95301.0,95288.0,0.3608]
[1736821827594,0.12928973,95302.0,95300.0,0.413289]
[1736821827789,0.0322,95318.0,95300.0,0.3608]
[1736821827992,0.01,95318.0,95309.0,0.3608]
[1736821828192,0.01,95318.0,95316.0,0.05248]
[1736821828504,0.01,95318.0,95317.0,0.0326]
[1736821830894,0.014,95318.0,95317.0,0.0326]
[1736821833995,0.014,95318.0,95309.0,0.3608]
[1736821834202,0.06648,95318.0,95309.0,0.3608]
[1736821834707,0.014,95318.0,95309.0,0.3608]
[1736821834892,0.014,95318.0,95316.0,0.05248]
[1736821835204,0.013,95318.0,95317.0,0.3608]
[1736821837399,0.0314,95339.0,95317.0,0.3608]
[1736821837599,0.0714,95339.0,95328.0,0.052473]
[1736821837800,0.123868,95339.0,95328.0,0.052473]
[1736821838009,0.052471,95333.0,95326.0,0.0328]
[1736821838301,0.082471,95333.0,95326.0,0.0328]
[1736821839206,0.082471,95333.0,95328.0,0.001]
[1736821840805,0.087471,95333.0,95326.0,0.0328]
[1736821841205,0.3608,95330.0,95326.0,0.0328]
[1736821841406,0.03,95330.0,95326.0,0.0328]
[1736821841802,0.082472,95330.0,95328.0,0.001]
[1736821842411,0.082472,95330.0,95326.0,0.0328]
[1736821842602,0.087472,95330.0,95326.0,0.0328]
[1736821842802,0.052477,95322.0,95310.0,0.114083]
[1736821843107,0.052477,95322.0,95310.0,0.0312]
[1736821843302,0.052477,95322.0,95315.0,0.05248]
[1736821843605,0.052475,95326.0,95317.0,0.052479]
[1736821844108,0.008,95322.0,95317.0,0.052479]
[1736821844305,0.052478,95321.0,95312.0,0.3608]
[1736821844500,0.052479,95318.0,95315.0,0.001]
[1736821844709,0.05248,95317.0,95315.0,0.001]
[1736821846008,0.3648,95317.0,95304.0,0.3608]
[1736821846217,0.052487,95304.0,95295.0,0.052492]
[1736821846512,0.46660482,95305.0,95293.0,0.0332]
[1736821846713,0.46660482,95305.0,95286.0,0.0327]
[1736821846714,0.052491,95296.0,95282.0,0.0331]
[1736821846914,0.052491,95296.0,95282.0,0.0663]
[1736821847117,0.10580482,95298.0,95282.0,0.0663]
[1736821847407,0.052492,95294.0,95282.0,0.0663]
[1736821847609,0.052492,95294.0,95287.0,0.3608]
[1736821848804,0.052492,95294.0,95287.0,0.413296]
[1736821849511,0.3608,95297.0,95288.0,0.052495]
[1736821849820,0.10580482,95298.0,95291.0,0.052494]
[1736821851906,0.01018404,95300.0,95292.0,0.052493]
[1736821852107,0.052489,95301.0,95292.0,0.052493]
[1736821852806,0.3608,95305.0,95290.0,0.10580482]
[1736821853211,0.3608,95305.0,95291.0,0.052494]
[1736821853212,0.10580482,95300.0,95291.0,0.052494]
[1736821853409,0.15829382,95300.0,95291.0,0.052494]
[1736821853611,0.05249,95298.0,95291.0,0.052494]
[1736821854213,0.052491,95296.0,95290.0,0.001]
[1736821854613,0.052491,95296.0,95287.0,0.3608]
[1736821855114,0.3608,95297.0,95287.0,0.3608]
[1736821855115,0.052493,95292.0,95287.0,0.3608]
[1736821855321,0.3608,95288.0,95282.0,0.0332]
[1736821855514,0.052497,95287.0,95282.0,0.0332]
[1736821856712,0.052497,95287.0,95282.0,0.0372]
[1736821857025,0.3608,95288.0,95282.0,0.0392]
[1736821857211,0.052493,95293.0,95282.0,0.0392]
[1736821858519,0.052493,95293.0,95283.0,0.0309]
[1736821858822,0.052493,95293.0,95286.0,0.052496]
[1736821859727,0.3608,95297.0,95283.0,0.0309]
[1736821859931,0.052489,95301.0,95290.0,0.3608]
[1736821860423,0.3608,95308.0,95300.0,0.052489]
[1736821860622,0.413285,95308.0,95300.0,0.052489]
[1736821860828,0.3608,95308.0,95300.0,0.052489]
[1736821861031,0.052486,95305.0,95293.0,0.052493]
[1736821861230,0.10580482,95303.0,95293.0,0.052493]
[1736821861733,0.3608,95296.0,95286.0,0.004]
[1736821862030,0.46660482,95296.0,95286.0,0.004]
[1736821862231,0.46660482,95296.0,95286.0,0.003]
[1736821862435,0.052492,95295.0,95286.0,0.003]
[1736821862641,0.052493,95292.0,95290.0,0.001]
[1736821863830,0.052493,95292.0,95286.0,0.003]
[1736821864031,0.052493,95292.0,95290.0,0.001]
[1736821864524,0.052493,95292.0,95290.0,0.002]
[1736821865535,0.052493,95292.0,95290.0,0.001]
[1736821866127,0.052494,95290.0,95286.0,0.001]
[1736821866334,0.46716483,95296.0,95286.0,0.001]
[1736821866335,0.052496,95288.0,95286.0,0.003]
[1736821866938,0.052496,95288.0,95282.0,0.3608]
[1736821867136,0.3608,95286.0,95263.0,0.04062791]
[1736821867330,0.10580482,95280.0,95271.0,0.3608]
[1736821868139,0.052502,95276.0,95269.0,0.052506]
[1736821868332,0.052503,95275.0,95269.0,0.052506]
[1736821868646,0.3608,95277.0,95272.0,0.052504]
[1736821868831,0.3608,95277.0,95263.0,0.0301]
[1736821869032,0.3608,95277.0,95276.0,0.052502]
[1736821869441,0.052499,95283.0,95276.0,0.052502]
[1736821869837,0.001,95277.0,95276.0,0.052502]
[1736821870543,0.3608,95286.0,95276.0,0.007]
[1736821870938,0.10580482,95290.0,95287.0,0.052496]
[1736821871143,0.3608,95296.0,95282.0,0.3608]
[1736821871334,0.3608,95296.0,95283.0,0.0303]
[1736821871539,0.3608,95296.0,95283.0,0.0632]
[1736821871739,0.3608,95296.0,95289.0,0.052495]
[1736821872336,0.413291,95296.0,95289.0,0.052495]
[1736821873141,0.413291,95296.0,95289.0,0.053495]
[1736821873343,0.413291,95296.0,95289.0,0.054495]
[1736821875051,0.3608,95296.0,95289.0,0.002]
[1736821875236,0.052494,95290.0,95289.0,0.002]
[1736821875633,0.3608,95296.0,95289.0,0.002]
[1736821876339,0.3608,95296.0,95289.0,0.001]
[1736821876539,0.3608,95296.0,95289.0,0.002]
[1736821877939,0.413292,95296.0,95289.0,0.002]
[1736821879736,0.052492,95295.0,95289.0,0.002]
[1736821881846,0.052492,95295.0,95288.0,0.052495]
[1736821882046,0.052492,95295.0,95289.0,0.002]
[1736821883153,0.052492,95295.0,95289.0,0.001]
[1736821883350,0.3608,95296.0,95289.0,0.001]
[1736821883655,0.052495,95289.0,95288.0,0.003]
[1736821883845,0.052501,95278.0,95272.0,0.052504]
[1736821884044,0.052502,95277.0,95267.0,0.0328]
[1736821884251,0.052502,95277.0,95267.0,0.085307]
[1736821884549,0.052502,95277.0,95270.0,0.413305]
[1736821884854,0.46716483,95282.0,95271.0,0.052504]
[1736821885052,0.51910382,95282.0,95271.0,0.052504]
[1736821885245,0.0525,95280.0,95271.0,0.052504]
[1736821885446,0.052501,95279.0,95271.0,0.052504]
[1736821885842,0.052502,95278.0,95271.0,0.052504]
[1736821886046,0.053502,95277.0,95270.0,0.3728]
[1736821886245,0.3608,95271.0,95270.0,0.012]
[1736821886454,0.3608,95271.0,95270.0,0.004]
[1736821886675,0.3608,95271.0,95266.0,0.00157417]
[1736821886963,0.052505,95270.0,95266.0,0.00157417]
[1736821887170,0.052506,95269.0,95266.0,0.00157417]
[1736821888948,0.06290906,95269.0,95266.0,0.00157417]
[1736821889148,0.06290906,95269.0,95266.0,0.00757417]
[1736821889149,0.001,95269.0,95266.0,0.00757417]
[1736821889354,0.001,95269.0,95266.0,0.01257417]
[1736821889652,0.001,95269.0,95267.0,0.052507]
[1736821891760,0.001,95269.0,95266.0,0.01257417]
[1736821891949,0.001,95269.0,95267.0,0.011]
[1736821892149,0.3608,95268.0,95267.0,0.011]
[1736821892753,0.393,95268.0,95267.0,0.011]
[1736821893052,0.0322,95268.0,95267.0,0.006]
[1736821893553,0.0442,95268.0,95251.0,0.052516]
[1736821893759,0.413312,95259.0,95251.0,0.052516]
[1736821894253,0.052514,95254.0,95241.0,0.084621]
[1736821894456,0.052515,95253.0,95241.0,0.084621]
[1736821895859,0.053515,95253.0,95241.0,0.084621]
[1736821896153,0.054515,95253.0,95244.0,0.00657482]
[1736821896351,0.002,95253.0,95244.0,0.00657482]
[1736821896657,0.052516,95252.0,95244.0,0.00657482]
[1736821897455,0.052517,95250.0,95244.0,0.00657482]
[1736821897658,0.0318,95249.0,95244.0,0.00657482]
[1736821898861,0.085317,95249.0,95244.0,0.00457482]
[1736821899352,0.0328,95249.0,95244.0,0.00457482]
[1736821899758,0.0328,95249.0,95244.0,0.00357482]
[1736821900554,0.052519,95246.0,95244.0,0.00357482]
[1736821901365,0.052519,95246.0,95244.0,0.002]
[1736821901662,0.052521,95241.0,95233.0,0.3608]
[1736821902257,0.3608,95241.0,95233.0,0.3608]
[1736821902457,0.052524,95237.0,95233.0,0.3608]
[1736821902954,0.052525,95235.0,95233.0,0.3608]
[1736821903152,0.052527,95231.0,95226.0,0.05253]
[1736821903354,0.052528,95229.0,95221.0,0.052532]
[1736821903959,0.10580482,95231.0,95217.0,0.3608]
[1736821904157,0.0325,95230.0,95217.0,0.3608]
[1736821904454,0.052533,95221.0,95217.0,0.3608]
[1736821905653,0.053533,95221.0,95217.0,0.3608]
[1736821905859,0.052533,95220.0,95217.0,0.3608]
[1736821906453,0.002,95221.0,95217.0,0.3608]
[1736821906658,0.002,95221.0,95214.0,0.0015753]
[1736821906857,0.3608,95215.0,95214.0,0.0015753]
[1736821909200,0.3608,95215.0,95214.0,0.0025753]
[1736821910279,0.37114133,95215.0,95214.0,0.0025753]
[1736821911385,0.37214133,95215.0,95214.0,0.0025753]
[1736821912870,0.37114133,95215.0,95214.0,0.0015753]
[1736821913065,0.37114133,95215.0,95214.0,0.0025753]
[1736821913667,0.37114133,95215.0,95214.0,0.0015753]
[1736821914266,0.37214133,95215.0,95203.0,0.3608]
[1736821914470,0.052542,95204.0,95203.0,0.3608]
[1736821914870,0.052544,95201.0,95195.0,0.0316]
[1736821915066,0.052544,95201.0,95196.0,0.052546]
[1736821916368,0.053544,95201.0,95196.0,0.052546]
[1736821916565,0.06418295,95201.0,95196.0,0.052546]
[1736821917264,0.06418295,95201.0,95200.0,0.102]
[1736821920976,0.06518295,95201.0,95200.0,0.102]
[1736821921174,0.052552,95186.0,95184.0,0.0327]
[1736821921467,0.052553,95184.0,95183.0,0.00157572]
[1736821922384,0.052553,95184.0,95164.0,0.0617]
[1736821922385,0.05256,95171.0,95168.0,0.052561]
[1736821922877,0.3608,95177.0,95164.0,0.0617]
[1736821923074,0.413357,95177.0,95171.0,0.05256]
[1736821923272,0.052558,95175.0,95171.0,0.05256]
[1736821923678,0.052564,95165.0,95163.0,0.0006]
[1736821923878,0.052565,95162.0,95157.0,0.052568]
[1736821924777,0.052566,95161.0,95155.0,0.0305]
[1736821924983,0.001,95165.0,95155.0,0.0305]
[1736821925185,0.052566,95160.0,95155.0,0.0305]
[1736821925575,0.001,95162.0,95155.0,0.0305]
[1736821925876,0.0313,95164.0,95155.0,0.0305]
[1736821925877,0.052567,95159.0,95155.0,0.0305]
[1736821926185,0.052567,95158.0,95155.0,0.0305]